bitfinex/quotes_BTCUSD_20251224
["timestamp","ask_amount","ask_price","bid_price","bid_amount"]
[1766619199311,4.2e-07,87716.0,87702.0,0.01140224]
[1766619199431,0.11821,87715.0,87707.0,0.01140159]
[1766619199803,0.11821,87715.0,87708.0,0.01144]
[1766619200335,0.11821,87715.0,87708.0,0.02284146]
[1766619200680,0.11821,87715.0,87708.0,0.01144]
[1766619201313,0.11821,87715.0,87708.0,0.02284146]
[1766619202360,0.11821,87715.0,87709.0,0.01140133]
[1766619202532,0.11821,87715.0,87710.0,0.0114012]
[1766619202808,4.2e-07,87716.0,87715.0,0.000549]
[1766619203009,4.2e-07,87716.0,87711.0,0.02509103]
[1766619203010,4.2e-07,87716.0,87713.0,0.01140081]
[1766619203157,4.2e-07,87716.0,87713.0,0.06840489]
[1766619203740,4.2e-07,87716.0,87714.0,0.01144]
[1766619204185,4.2e-07,87719.0,87716.0,0.01140042]
[1766619204785,0.05618946,87731.0,87717.0,0.01140029]
[1766619205163,0.01139886,87728.0,87717.0,0.01140029]
[1766619205343,0.01139873,87729.0,87717.0,0.01140029]
[1766619205547,0.12960731,87740.0,87729.0,0.01139873]
[1766619205866,0.01139757,87738.0,87729.0,0.000549]
[1766619206062,0.12960757,87738.0,87726.0,0.01139912]
[1766619206285,0.12960757,87738.0,87726.0,0.01135811]
[1766619206466,0.12960757,87738.0,87728.0,0.01139886]
[1766619206467,0.11821,87738.0,87728.0,0.01139886]
[1766619206689,0.00010612,87738.0,87732.0,0.05699137]
[1766619206893,0.01144,87743.0,87738.0,0.00044288]
[1766619207100,0.01144,87743.0,87733.0,0.01139821]
[1766619207303,0.01144,87743.0,87732.0,0.05699137]
[1766619207304,0.01139692,87743.0,87732.0,0.01139834]
[1766619207495,0.01139692,87743.0,87733.0,0.01139821]
[1766619207695,0.01139692,87743.0,87731.0,0.06839085]
[1766619207696,0.01139705,87742.0,87731.0,0.01139847]
[1766619207927,0.0004,87744.0,87731.0,0.06839072]
[1766619208085,0.0004,87744.0,87733.0,0.01139821]
[1766619208086,0.01179679,87744.0,87733.0,0.01139821]
[1766619208697,0.0004,87744.0,87738.0,0.05698736]
[1766619208894,0.0004,87744.0,87738.0,0.02283757]
[1766619209120,0.12960588,87751.0,87739.0,0.0250874]
[1766619209701,0.01139601,87750.0,87739.0,0.01368996]
[1766619209942,0.0113964,87747.0,87739.0,0.01368996]
[1766619210703,0.01139653,87746.0,87739.0,0.01368996]
[1766619210904,0.0113964,87747.0,87739.0,0.01368996]
[1766619212112,0.01139653,87746.0,87739.0,0.01368996]
[1766619212305,0.0113964,87747.0,87739.0,0.01368996]
[1766619213729,0.01139627,87748.0,87739.0,0.01368996]
[1766619213935,0.0113964,87747.0,87739.0,0.01368996]
[1766619214156,0.01139627,87748.0,87739.0,0.01368996]
[1766619214847,0.06837684,87749.0,87739.0,0.01368996]
[1766619215102,0.01139627,87748.0,87739.0,0.01368996]
[1766619217420,0.06837684,87749.0,87739.0,0.01368996]
[1766619218492,0.01139627,87748.0,87739.0,0.01368996]
[1766619218699,0.12579344,87739.0,87724.0,0.08208581]
[1766619218908,0.12579344,87739.0,87726.0,0.01144]
[1766619218909,0.12568757,87738.0,87726.0,0.01144]
[1766619219117,0.01139782,87736.0,87726.0,0.01144]
[1766619219330,0.01139795,87735.0,87726.0,0.01144]
[1766619219553,0.01139795,87735.0,87725.0,0.01379608]
[1766619219554,0.01139886,87728.0,87725.0,0.00010612]
[1766619219732,0.11429,87728.0,87725.0,0.00010612]
[1766619219934,0.12568886,87728.0,87722.0,0.01144]
[1766619220117,0.11429,87728.0,87722.0,0.01144]
[1766619220655,0.12568886,87728.0,87722.0,0.01144]
[1766619223675,0.11429,87728.0,87722.0,0.01144]
[1766619225527,0.113741,87728.0,87723.0,0.01368996]
[1766619226985,0.12568795,87735.0,87724.0,0.01139938]
[1766619227189,0.01139769,87737.0,87725.0,0.01139925]
[1766619227428,0.0683881,87735.0,87723.0,0.01368996]
[1766619227607,0.01139808,87734.0,87723.0,0.01368996]
[1766619227941,0.01139834,87732.0,87723.0,0.01368996]
[1766619228152,0.01139821,87733.0,87723.0,0.01368996]
[1766619228523,0.01139834,87732.0,87723.0,0.01368996]
[1766619228719,0.01139847,87731.0,87723.0,0.01368996]
[1766619230081,0.01139834,87732.0,87723.0,0.01368996]
[1766619230826,0.06838962,87733.0,87723.0,0.01368996]
[1766619231025,0.01139821,87733.0,87723.0,0.01368996]
[1766619231410,0.01139808,87734.0,87723.0,0.02508947]
[1766619231609,0.01139795,87735.0,87724.0,0.01139938]
[1766619231835,0.00010606,87737.0,87729.0,0.01139873]
[1766619232012,0.00010606,87737.0,87730.0,0.0228386]
[1766619232207,0.00010606,87737.0,87730.0,0.01144]
[1766619232418,0.06837997,87745.0,87732.0,0.01139834]
[1766619232619,0.01139705,87742.0,87737.0,0.000106]
[1766619232871,0.01139718,87741.0,87735.0,0.000106]
[1766619233069,0.01139705,87742.0,87735.0,0.000106]
[1766619233245,0.01139705,87742.0,87735.0,1e-06]
[1766619233246,0.01139744,87739.0,87735.0,1e-06]
[1766619233421,0.01139757,87738.0,87735.0,1e-06]
[1766619234090,0.11429,87736.0,87735.0,1e-06]
[1766619236514,0.01139808,87734.0,87729.0,0.01144]
[1766619236719,0.01139808,87734.0,87729.0,0.01119049]
[1766619236940,0.01139821,87733.0,87729.0,0.01119049]
[1766619237066,0.01139808,87734.0,87729.0,0.01119049]
[1766619237524,0.12568782,87736.0,87729.0,0.01119049]
[1766619237728,0.01139821,87733.0,87729.0,0.01119049]
[1766619237885,0.01139808,87734.0,87729.0,0.01119049]
[1766619238097,0.01139821,87733.0,87729.0,0.01119049]
[1766619238720,0.01139808,87734.0,87729.0,0.01119049]
[1766619239125,0.01139795,87735.0,87729.0,0.01119049]
[1766619239707,0.01139782,87736.0,87729.0,0.01119049]
[1766619239910,0.01139795,87735.0,87729.0,0.01119049]
[1766619240307,0.01139808,87734.0,87729.0,0.01119049]
[1766619240514,0.01139795,87735.0,87729.0,0.01119049]
[1766619240717,0.01139808,87734.0,87729.0,0.01119049]
[1766619242149,0.01139821,87733.0,87729.0,0.01119049]
[1766619242352,0.01139834,87732.0,87729.0,0.01119049]
[1766619242572,0.01139834,87732.0,87723.0,0.01368996]
[1766619242573,0.00055,87729.0,87728.0,0.01144]
[1766619242771,0.12770847,87731.0,87728.0,0.01144]
[1766619243108,0.11631,87731.0,87728.0,0.01144]
[1766619243308,0.12770847,87731.0,87728.0,0.01144]
[1766619245227,0.12776489,87731.0,87728.0,0.01144]
[1766619250138,0.01145489,87731.0,87728.0,0.01144]
[1766619254688,0.06844764,87731.0,87728.0,0.01144]
[1766619255153,0.05699332,87730.0,87728.0,0.01144]
[1766619255352,0.01139925,87725.0,87703.0,0.22804139]
[1766619255594,0.05699578,87726.0,87713.0,0.00011]
[1766619255595,0.01139964,87722.0,87713.0,0.00011]
[1766619255809,0.22810766,87728.0,87713.0,0.00011]
[1766619255810,0.01140042,87716.0,87713.0,0.00011]
[1766619256018,0.06840311,87716.0,87713.0,0.00011]
[1766619256353,0.06840299,87716.0,87713.0,0.00011]
[1766619256971,0.17331321,87715.0,87713.0,0.00011]
[1766619257177,0.17331321,87715.0,87708.0,0.01144]
[1766619257178,0.11631,87711.0,87708.0,0.01144]
[1766619257377,0.11589,87711.0,87708.0,0.01144]
[1766619261931,0.01140068,87714.0,87708.0,0.01144]
[1766619262580,0.01140081,87713.0,87708.0,0.01144]
[1766619263017,0.01140068,87714.0,87708.0,0.01144]
[1766619264010,0.01140081,87713.0,87708.0,0.01144]
[1766619264955,0.01140068,87714.0,87704.0,0.01144]
[1766619265155,0.01140068,87714.0,87707.0,0.01368996]
[1766619267252,0.01140094,87712.0,87707.0,0.01368996]
[1766619267460,0.01140081,87713.0,87707.0,0.01368996]
[1766619267874,0.01140107,87711.0,87707.0,0.01368996]
[1766619268122,0.01140081,87713.0,87707.0,0.01368996]
[1766619270477,0.01140068,87714.0,87707.0,0.01368996]
[1766619270656,0.01140081,87713.0,87707.0,0.01368996]
[1766619270852,0.01140068,87714.0,87707.0,0.01368996]
[1766619272115,0.01140081,87713.0,87707.0,0.01368996]
[1766619275666,0.01140094,87712.0,87707.0,0.01368996]
[1766619276435,0.01140081,87713.0,87707.0,0.01368996]
[1766619276842,0.11744,87716.0,87713.0,0.00011]
[1766619277069,0.11744,87716.0,87707.0,0.01368996]
[1766619277070,0.01140055,87715.0,87707.0,0.01368996]
[1766619277218,0.11744,87716.0,87707.0,0.01368996]
[1766619277424,0.11744,87716.0,87707.0,0.02509155]
[1766619277660,0.11744,87716.0,87707.0,0.01368996]
[1766619278177,0.12884042,87716.0,87707.0,0.01368996]
[1766619278394,0.11744,87716.0,87707.0,0.01368996]
[1766619278937,0.11733,87716.0,87707.0,0.01368996]
[1766619280756,0.12873042,87716.0,87707.0,0.01368996]
[1766619281008,0.12849353,87716.0,87707.0,0.01368996]
[1766619281925,0.01140068,87714.0,87707.0,0.01368996]
[1766619282224,0.01140055,87715.0,87707.0,0.01368996]
[1766619282402,0.01140068,87714.0,87707.0,0.01368996]
[1766619283692,0.01140081,87713.0,87707.0,0.01368996]
[1766619284113,0.06840517,87713.0,87707.0,0.01368996]
[1766619285100,0.01140094,87712.0,87707.0,0.01368996]
[1766619287830,0.06840439,87714.0,87707.0,0.01368996]
[1766619288654,0.01140081,87713.0,87707.0,0.01368996]
[1766619288857,0.01140094,87712.0,87707.0,0.01368996]
[1766619289375,0.01140081,87713.0,87707.0,0.01368996]
[1766619289968,0.12853311,87716.0,87707.0,0.01368996]
[1766619289969,0.13993353,87716.0,87707.0,0.01368996]
[1766619290387,0.01140055,87715.0,87707.0,0.01368996]
[1766619290771,0.01140068,87714.0,87707.0,0.01368996]
[1766619290982,0.01140081,87713.0,87707.0,0.01368996]
[1766619291564,0.01140068,87714.0,87707.0,0.01368996]
[1766619291769,0.01140081,87713.0,87707.0,0.01368996]
[1766619293224,0.01140094,87712.0,87707.0,0.01368996]
[1766619297038,0.01140081,87713.0,87707.0,0.01368996]
[1766619297222,0.01140094,87712.0,87707.0,0.01368996]
[1766619297646,0.01140081,87713.0,87707.0,0.01368996]
[1766619297845,0.01140094,87712.0,87707.0,0.01368996]
[1766619298421,0.01140081,87713.0,87707.0,0.01368996]
[1766619300454,0.01140094,87712.0,87707.0,0.01368996]
[1766619300986,0.01140081,87713.0,87707.0,0.01368996]
[1766619301193,0.01140094,87712.0,87707.0,0.01368996]
[1766619301354,0.01140081,87713.0,87707.0,0.01368996]
[1766619301756,0.01144,87715.0,87707.0,0.01368996]
[1766619302559,0.11614218,87716.0,87707.0,0.01368996]
[1766619302760,0.1389826,87716.0,87707.0,0.01368996]
[1766619303200,0.1275426,87716.0,87707.0,0.01368996]
[1766619303470,0.1389826,87716.0,87707.0,0.01368996]
[1766619307741,0.11614218,87716.0,87707.0,0.01368996]
[1766619307896,0.22797869,87728.0,87707.0,0.01368996]
[1766619307897,0.01139834,87732.0,87719.0,0.01140003]
[1766619308096,0.11314943,87739.0,87728.0,0.0683927]
[1766619308415,0.01139666,87745.0,87731.0,0.05699199]
[1766619308583,0.01139692,87743.0,87731.0,0.01139847]
[1766619308790,0.02283679,87744.0,87731.0,0.01139847]
[1766619308990,0.11476,87744.0,87734.0,0.01139808]
[1766619309201,0.01144,87745.0,87737.0,0.01139769]
[1766619309407,0.01144,87745.0,87736.0,0.01368996]
[1766619309635,0.01139679,87744.0,87736.0,0.01368996]
[1766619309836,0.02283666,87745.0,87736.0,0.01368996]
[1766619310041,0.01139692,87743.0,87736.0,0.01314096]
[1766619310338,0.01139705,87742.0,87736.0,0.01314096]
[1766619310742,0.01139679,87744.0,87736.0,0.01314096]
[1766619311083,0.01139692,87743.0,87736.0,0.01314096]
[1766619311282,0.01139718,87741.0,87736.0,0.01314096]
[1766619311852,0.01139692,87743.0,87736.0,0.01314096]
[1766619312410,0.07982042,87745.0,87736.0,0.01314096]
[1766619313112,0.01139679,87744.0,87736.0,0.01314096]
[1766619314049,0.01139692,87743.0,87736.0,0.01314096]
[1766619314266,0.01139705,87742.0,87736.0,0.01314096]
[1766619314603,0.01139692,87743.0,87736.0,0.01314096]
[1766619314800,0.01139705,87742.0,87736.0,0.01314096]
[1766619316087,0.01139705,87742.0,87653.0,0.32132424]
[1766619316088,0.01139834,87732.0,87726.0,0.01144]
[1766619316277,0.11476,87734.0,87726.0,0.01144]
[1766619316480,0.12615808,87734.0,87726.0,0.01144]
[1766619316683,0.11476,87734.0,87726.0,0.01144]
[1766619318162,0.11476,87734.0,87726.0,0.02283912]
[1766619319351,0.11476,87734.0,87727.0,0.01139899]
[1766619320369,0.11476,87734.0,87728.0,0.01139886]
[1766619320567,0.114211,87734.0,87728.0,0.01139886]
[1766619321172,0.114211,87734.0,87727.0,0.01139899]
[1766619321376,0.114211,87734.0,87726.0,0.01144]
[1766619321593,0.114211,87734.0,87726.0,0.02283912]
[1766619330304,0.114211,87734.0,87727.0,0.01139899]
[1766619330506,0.114211,87734.0,87728.0,0.01139886]
[1766619330680,0.114211,87734.0,87727.0,0.01139899]
[1766619333261,0.114211,87734.0,87728.0,0.01139886]
[1766619335209,0.114211,87734.0,87729.0,0.01139873]
[1766619335411,0.12478,87741.0,87730.0,0.0113986]
[1766619336308,0.12478,87741.0,87731.0,0.01139847]
[1766619337299,0.12478,87741.0,87732.0,0.01139834]
[1766619337509,0.12478,87741.0,87731.0,0.01139847]
[1766619337889,0.12478,87741.0,87732.0,0.01139834]
[1766619338247,0.12478,87741.0,87731.0,0.01139847]
[1766619338787,0.13617718,87741.0,87730.0,0.0113986]
[1766619338989,0.12478,87741.0,87731.0,0.01139847]
[1766619339199,0.13617718,87741.0,87730.0,0.0113986]
[1766619339411,0.01139731,87740.0,87725.0,0.01139925]
[1766619339603,0.000549,87730.0,87726.0,0.02283912]
[1766619339799,0.01139769,87737.0,87726.0,0.02283912]
[1766619340876,0.01139757,87738.0,87726.0,0.02283912]
[1766619341627,0.01139769,87737.0,87726.0,0.02283912]
[1766619341996,0.12072,87738.0,87727.0,0.01139899]
[1766619342863,0.12072,87738.0,87726.0,0.02283912]
[1766619342864,0.01139769,87737.0,87726.0,0.02283912]
[1766619343014,0.13211757,87738.0,87727.0,0.01139899]
[1766619343982,0.12072,87738.0,87727.0,0.01139899]
[1766619344155,0.17770823,87738.0,87726.0,0.01144]
[1766619344538,0.01139769,87737.0,87726.0,0.02283912]
[1766619344739,0.01139782,87736.0,87726.0,0.01144]
[1766619345179,0.01139782,87736.0,87726.0,0.02283912]
[1766619345350,0.12072,87738.0,87726.0,0.0798347]
[1766619345538,0.12072,87738.0,87728.0,0.01139886]
[1766619345739,0.12072,87738.0,87729.0,0.01139873]
[1766619346051,0.12072,87738.0,87728.0,0.01139886]
[1766619347101,0.12072,87738.0,87729.0,0.01139873]
[1766619347265,0.12072,87738.0,87729.0,0.06839219]
[1766619347472,0.12072,87738.0,87730.0,0.0113986]
[1766619347893,0.12072,87738.0,87729.0,0.01139873]
[1766619348069,0.12072,87738.0,87728.0,0.01139886]
[1766619348491,0.13211757,87738.0,87727.0,0.01139899]
[1766619350228,0.01139769,87737.0,87726.0,0.02283912]
[1766619350647,0.12072,87738.0,87728.0,0.01139886]
[1766619350861,0.12072,87738.0,87731.0,0.01139847]
[1766619351064,0.12072,87738.0,87732.0,0.01139834]
[1766619351509,0.01144,87741.0,87736.0,0.01368996]
[1766619351847,0.01144,87741.0,87736.0,0.02508778]
[1766619352047,0.01144,87741.0,87736.0,0.01368996]
[1766619352724,0.01144,87741.0,87736.0,0.01314096]
[1766619355300,0.01139692,87743.0,87732.0,0.01139834]
[1766619355532,0.02283705,87742.0,87731.0,0.02283847]
[1766619355925,0.01144,87742.0,87732.0,0.01139834]
[1766619356688,0.01144,87742.0,87731.0,0.02283847]
[1766619356689,0.00055,87732.0,87731.0,0.00797871]
[1766619357069,0.01139808,87734.0,87731.0,0.00797871]
[1766619357806,0.01139769,87737.0,87731.0,0.00742871]
[1766619358852,0.01139757,87738.0,87731.0,0.00742871]
[1766619359189,0.01139769,87737.0,87731.0,0.00742871]
[1766619359401,0.18910514,87739.0,87731.0,0.00742871]
[1766619359596,0.01139757,87738.0,87731.0,0.00742871]
[1766619361166,0.13211744,87739.0,87731.0,0.00742871]
[1766619361769,0.12072,87739.0,87731.0,0.00742871]
[1766619361969,0.02283705,87742.0,87731.0,0.01882718]
[1766619362620,0.01144,87742.0,87731.0,0.01882718]
[1766619362821,0.01139731,87740.0,87731.0,0.00742871]
[1766619363038,0.12151,87740.0,87731.0,0.00742871]
[1766619363937,0.13290731,87740.0,87731.0,0.00742871]
[1766619364131,0.01139757,87738.0,87731.0,0.00742871]
[1766619364283,0.01139782,87736.0,87731.0,0.00742871]
[1766619364477,0.13290769,87737.0,87731.0,0.00742871]
[1766619364682,0.01139782,87736.0,87731.0,0.00742871]
[1766619365121,0.13290769,87737.0,87731.0,0.00742871]
[1766619365325,0.12151,87737.0,87731.0,0.00742871]
[1766619366163,0.13290769,87737.0,87731.0,0.00742871]
[1766619366724,0.01139782,87736.0,87731.0,0.00742871]
[1766619367128,0.13290769,87737.0,87731.0,0.00742871]
[1766619368329,0.12151,87737.0,87731.0,0.00742871]
[1766619369346,0.13290808,87734.0,87731.0,0.00742871]
[1766619369505,0.12151,87733.0,87728.0,0.01144]
[1766619369714,0.13290821,87733.0,87728.0,0.01144]
[1766619370521,0.01139834,87732.0,87728.0,0.01144]
[1766619370741,0.01139834,87732.0,87728.0,0.01368996]
[1766619371155,0.13290821,87733.0,87728.0,0.01368996]
[1766619371485,0.12151,87733.0,87728.0,0.01368996]
[1766619377741,0.00016934,87730.0,87728.0,0.01368996]
[1766619377946,3.4e-07,87730.0,87728.0,0.01368996]
[1766619379627,3.4e-07,87730.0,87729.0,0.05699369]
[1766619381826,3.4e-07,87730.0,87728.0,0.01368996]
[1766619383773,3.4e-07,87730.0,87728.0,0.07068388]
[1766619384538,0.01144,87742.0,87732.0,0.01139834]
[1766619384778,0.02283705,87742.0,87730.0,0.05699284]
[1766619385144,0.01144,87742.0,87732.0,0.01139834]
[1766619385724,0.01144,87742.0,87731.0,0.01139847]
[1766619385927,0.01144,87742.0,87732.0,0.01139834]
[1766619386123,0.02283705,87742.0,87731.0,0.01139847]
[1766619386558,0.01144,87742.0,87732.0,0.01139834]
[1766619388626,0.01144,87742.0,87733.0,0.01139821]
[1766619389153,0.0358841,87748.0,87737.0,0.01139769]
[1766619389337,0.01144,87747.0,87737.0,0.01139769]
[1766619389851,0.01144,87747.0,87735.0,0.01139795]
[1766619390018,0.0228364,87747.0,87735.0,0.01139795]
[1766619391122,0.0228364,87747.0,87736.0,0.01139782]
[1766619392654,0.01144,87747.0,87737.0,0.01139769]
[1766619392843,0.0113964,87747.0,87737.0,0.01139769]
[1766619393178,0.13290614,87749.0,87738.0,0.01139757]
[1766619393327,0.02283653,87746.0,87736.0,0.01139782]
[1766619393521,0.01144,87746.0,87736.0,0.01139782]
[1766619394175,0.02283653,87746.0,87735.0,0.06838735]
[1766619394374,0.01144,87746.0,87736.0,0.01139782]
[1766619394622,0.01144,87746.0,87737.0,0.05698849]
[1766619394825,0.01144,87746.0,87735.0,0.01139795]
[1766619395003,0.02283653,87746.0,87736.0,0.01139782]
[1766619395411,0.01144,87746.0,87736.0,0.01139782]
[1766619397934,0.01144,87746.0,87737.0,0.01139769]
[1766619398139,0.01144,87746.0,87738.0,0.01139757]
[1766619398930,0.01144,87746.0,87737.0,0.01139769]
[1766619401194,0.01144,87746.0,87738.0,0.05698785]
[1766619401417,0.01144,87746.0,87738.0,0.01139757]
[1766619401631,0.01179549,87754.0,87738.0,0.01139757]
[1766619401632,0.0004,87754.0,87744.0,0.01139679]
[1766619401836,0.0004,87754.0,87746.0,0.00038]
[1766619401837,0.01144,87753.0,87746.0,0.00038]
[1766619402059,0.01144,87753.0,87745.0,0.05698298]
[1766619402060,0.01184,87754.0,87747.0,0.0113964]
[1766619402184,0.01184,87754.0,87746.0,0.01139653]
[1766619403051,0.01184,87754.0,87743.0,0.01368996]
[1766619403253,0.02323549,87754.0,87743.0,0.01368996]
[1766619403457,0.01179549,87754.0,87743.0,0.02508688]
[1766619403678,0.02323549,87754.0,87743.0,0.02508688]
[1766619403881,0.01144,87756.0,87745.0,0.01139666]
[1766619404181,0.01144,87756.0,87744.0,0.02283679]
[1766619404182,0.01139536,87755.0,87744.0,0.02283679]
[1766619404383,0.01139549,87754.0,87744.0,0.01144]
[1766619405028,0.01139536,87755.0,87744.0,0.01144]
[1766619405222,0.1132,87750.0,87739.0,0.01139744]
[1766619405424,0.1132,87750.0,87742.0,0.02512996]
[1766619406838,0.01139536,87755.0,87744.0,0.01139679]
[1766619407045,0.01153677,87756.0,87750.0,0.00038]
[1766619407598,0.01153677,87756.0,87745.0,0.01139666]
[1766619407819,0.01153677,87756.0,87746.0,0.01139653]
[1766619410461,0.01153677,87756.0,87747.0,0.0113964]
[1766619410904,0.01153677,87756.0,87748.0,0.01139627]
[1766619411106,0.022932,87756.0,87745.0,0.01139666]
[1766619411307,0.022932,87756.0,87746.0,0.01139653]
[1766619411637,0.12459549,87754.0,87741.0,0.06838247]
[1766619412119,0.12459549,87754.0,87742.0,0.03652701]
[1766619412296,0.12459549,87754.0,87743.0,0.01139692]
[1766619414322,0.01139562,87753.0,87742.0,0.03652701]
[1766619414526,0.1132,87752.0,87742.0,0.03652701]
[1766619415121,0.01139562,87753.0,87742.0,0.03652701]
[1766619415827,0.01139575,87752.0,87742.0,0.02512996]
[1766619417303,0.01139588,87751.0,87742.0,0.02512996]
[1766619418208,0.01139575,87752.0,87742.0,0.02512996]
[1766619418407,0.06837331,87754.0,87742.0,0.02512996]
[1766619418408,0.06837331,87754.0,87742.0,0.03652701]
[1766619418843,0.01139562,87753.0,87743.0,0.01139692]
[1766619419043,0.06837331,87754.0,87742.0,0.03652701]
[1766619419445,0.01139549,87754.0,87742.0,0.03652701]
[1766619419610,0.01139549,87754.0,87743.0,0.01139692]
[1766619420012,0.01139549,87754.0,87742.0,0.03652701]
[1766619420245,0.18199322,87754.0,87742.0,0.02512996]
[1766619420453,0.01139562,87753.0,87742.0,0.03652701]
[1766619420812,0.01139575,87752.0,87742.0,0.03652701]
[1766619421214,0.000169,87742.0,87740.0,0.01144]
[1766619421413,0.113789,87742.0,87737.0,0.01144]
[1766619421676,0.11362,87742.0,87737.0,0.01144]
[1766619421844,0.11362,87742.0,87737.0,0.02283769]
[1766619422266,0.11362,87742.0,87737.0,0.07982614]
[1766619422500,0.11362,87742.0,87739.0,0.01139744]
[1766619422628,0.11362,87742.0,87738.0,0.01139757]
[1766619423057,0.11324,87742.0,87738.0,0.01139757]
[1766619425258,0.11324,87742.0,87739.0,0.01139744]
[1766619425470,0.11324,87742.0,87738.0,0.01139757]
[1766619425797,0.11324,87742.0,87737.0,0.07982583]
[1766619425940,0.000549,87738.0,87737.0,0.01144]
[1766619426139,4.26e-06,87738.0,87737.0,0.01144]
[1766619426345,0.11324,87742.0,87737.0,0.01144]
[1766619431364,0.05698785,87738.0,87728.0,0.02339524]
[1766619431510,0.05698785,87738.0,87714.0,0.1461]
[1766619431511,0.13645769,87737.0,87721.0,0.01139977]
[1766619431676,0.0456,87744.0,87725.0,0.00011]
[1766619431677,0.12501847,87731.0,87725.0,0.00011]
[1766619431875,0.11362,87731.0,87725.0,0.00011]
[1766619433112,0.12501847,87731.0,87725.0,0.00011]
[1766619433329,0.11362,87731.0,87725.0,0.00011]
[1766619433793,0.12501847,87731.0,87725.0,0.00011]
[1766619434660,0.11362,87731.0,87725.0,0.00011]
[1766619434866,0.12501847,87731.0,87725.0,0.00011]
[1766619435209,0.11362,87731.0,87725.0,0.00011]
[1766619435930,0.113075,87731.0,87725.0,0.00011]
[1766619436132,0.113075,87731.0,87726.0,0.01139912]
[1766619436471,0.113075,87731.0,87725.0,0.01150925]
[1766619436832,0.113075,87731.0,87725.0,0.00011]
[1766619437654,0.113075,87731.0,87725.0,0.01150925]
[1766619437859,0.113075,87731.0,87726.0,0.01139912]
[1766619438078,0.01144,87733.0,87727.0,0.01139899]
[1766619438279,0.01144,87733.0,87726.0,0.01139912]
[1766619438597,0.02283769,87737.0,87727.0,0.01139899]
[1766619438758,0.01144,87737.0,87727.0,0.01139899]
[1766619438944,0.02283769,87737.0,87726.0,0.01139912]
[1766619439345,0.01139795,87735.0,87725.0,0.00011]
[1766619439582,0.0113986,87730.0,87724.0,0.01144]
[1766619439895,0.11362,87729.0,87724.0,0.011001]
[1766619445872,0.11362,87729.0,87724.0,0.02240038]
[1766619446098,0.01144,87733.0,87724.0,0.02240038]
[1766619446278,0.01144,87733.0,87725.0,0.01139925]
[1766619446909,0.01144,87733.0,87726.0,0.01139912]
[1766619447679,0.01144,87733.0,87724.0,0.02240038]
[1766619447967,0.01144,87733.0,87725.0,0.01139925]
[1766619448354,0.01144,87733.0,87726.0,0.01139912]
[1766619448557,0.01144,87733.0,87724.0,0.02240038]
[1766619450419,0.01144,87733.0,87725.0,0.01139925]
[1766619451284,0.01144,87733.0,87724.0,0.02240038]
[1766619452870,0.01144,87733.0,87725.0,0.01139925]
[1766619453083,0.01144,87733.0,87726.0,0.01139912]
[1766619453286,0.01144,87733.0,87725.0,0.01139925]
[1766619453872,0.01144,87733.0,87724.0,0.02240038]
[1766619454071,0.01144,87733.0,87725.0,0.01139925]
[1766619454252,0.01144,87733.0,87724.0,0.02240038]
[1766619454452,0.01144,87733.0,87725.0,0.01139925]
[1766619454690,0.01144,87733.0,87724.0,0.02240038]
[1766619455153,0.01144,87733.0,87725.0,0.01139925]
[1766619455627,0.01144,87733.0,87724.0,0.011001]
[1766619456187,0.02283821,87733.0,87724.0,0.011001]
[1766619456748,0.01139847,87731.0,87724.0,0.011001]
[1766619456940,0.01139834,87732.0,87724.0,0.010452]
[1766619457138,0.02283821,87733.0,87724.0,0.010452]
[1766619458305,0.01139834,87732.0,87724.0,0.010452]
[1766619459992,0.01139834,87732.0,87724.0,0.00956594]
[1766619460735,0.02283821,87733.0,87724.0,0.00956594]
[1766619460932,0.01139834,87732.0,87724.0,0.00956594]
[1766619461133,0.02283821,87733.0,87724.0,0.00956594]
[1766619461950,0.01139834,87732.0,87724.0,0.00956594]
[1766619462146,0.02283821,87733.0,87724.0,0.00956594]
[1766619463487,0.01144,87733.0,87724.0,0.00956594]
[1766619463971,0.02283821,87733.0,87724.0,0.00956594]
[1766619466412,0.01139834,87732.0,87724.0,0.00956594]
[1766619466582,0.02283821,87733.0,87724.0,0.00956594]
[1766619467317,0.01139834,87732.0,87724.0,0.00956594]
[1766619467693,0.02283821,87733.0,87724.0,0.00956594]
[1766619469635,0.01139834,87732.0,87724.0,0.00956594]
[1766619469808,0.01139808,87734.0,87724.0,0.00956594]
[1766619469998,0.01144,87733.0,87724.0,0.00956594]
[1766619470196,0.02283821,87733.0,87724.0,0.00956594]
[1766619471244,0.01144,87733.0,87724.0,0.00956594]
[1766619472766,0.01144,87733.0,87728.0,0.01139886]
[1766619472973,0.01144,87736.0,87733.0,0.000549]
[1766619473216,0.03433459,87745.0,87728.0,0.01139886]
[1766619473388,0.12437,87744.0,87735.0,0.01139795]
[1766619473593,0.01159433,87745.0,87736.0,0.01139782]
[1766619473771,0.01159433,87745.0,87735.0,0.01139795]
[1766619475374,0.01159433,87745.0,87736.0,0.01139782]
[1766619476316,0.00015433,87745.0,87739.0,0.01139744]
[1766619476880,0.00015433,87745.0,87738.0,0.01139757]
[1766619477477,0.00015433,87745.0,87739.0,0.01139744]
[1766619478331,0.00015433,87745.0,87740.0,0.01139731]
[1766619478541,0.00015433,87745.0,87739.0,0.01139744]
[1766619479111,0.00015433,87745.0,87738.0,0.01139757]
[1766619480722,0.00015433,87745.0,87734.0,0.06843]
[1766619481063,0.01139705,87742.0,87734.0,0.01144]
[1766619481247,0.01139692,87743.0,87734.0,0.01144]
[1766619481418,0.01139718,87741.0,87734.0,0.01144]
[1766619481768,0.01139705,87742.0,87734.0,0.01144]
[1766619482448,0.01139718,87741.0,87734.0,0.01144]
[1766619483056,0.01139731,87740.0,87734.0,0.01144]
[1766619483259,0.01139705,87742.0,87734.0,0.01144]
[1766619484656,0.06838187,87743.0,87734.0,0.01144]
[1766619486554,0.01139705,87742.0,87734.0,0.01144]
[1766619486794,0.01139692,87743.0,87734.0,0.01144]
[1766619486978,0.01139705,87742.0,87734.0,0.01144]
[1766619487500,0.01139692,87743.0,87734.0,0.01144]
[1766619491124,0.01139679,87744.0,87734.0,0.01144]
[1766619491326,0.01139692,87743.0,87734.0,0.01144]
[1766619492630,0.01139692,87743.0,87731.0,0.01139847]
[1766619492631,0.00055,87734.0,87731.0,0.01139847]
[1766619492838,0.116,87741.0,87731.0,0.01139847]
[1766619493737,0.116,87741.0,87730.0,0.0113986]
[1766619493941,0.116,87741.0,87731.0,0.01139847]
[1766619494510,0.116,87741.0,87730.0,0.0113986]
[1766619494707,0.12739718,87741.0,87730.0,0.0113986]
[1766619494965,0.01139757,87738.0,87726.0,0.03652908]
[1766619495139,0.01139782,87736.0,87726.0,0.02512996]
[1766619495470,0.116,87736.0,87726.0,0.02512996]
[1766619495814,0.116,87736.0,87726.0,0.03652908]